fUST/lending_fUST_20240809
["ID","MTS","AMOUNT","RATE_DAILY","PERIOD"]
[334538009,1723175466392,-500.0,0.00028767,7]
[334538010,1723175466402,-726.32,0.00028767,7]
[334538011,1723175466411,-500.0,0.00028767,7]
[334538012,1723175466421,-500.0,0.00028767,7]
[334538013,1723175466431,-214.98569271,0.00028767,7]
[334538014,1723175466441,-500.0,0.00028767,7]
[334538015,1723175466452,-710.48,0.00028767,7]
[334538016,1723175466463,-500.0,0.00028767,7]
[334538017,1723175466473,-573.02,0.00028767,7]
[334538018,1723175466483,-500.0,0.00028767,7]
[334538019,1723175466492,-1681.4,0.00028767,7]
[334538020,1723175466503,-500.0,0.00028767,7]
[334538021,1723175466512,-500.0,0.00028767,7]
[334538022,1723175466522,-1267.59,0.00028767,7]
[334538023,1723175466532,-154.19577827,0.00028767,7]
[334538024,1723175466542,-500.0,0.00028767,7]
[334538025,1723175466553,-500.0,0.00028767,7]
[334538026,1723175466568,-500.0,0.00028767,7]
[334538027,1723175466587,-868.37,0.00028767,7]
[334538028,1723175466597,-500.0,0.00028767,7]
[334538029,1723175466606,-507.43,0.00028767,7]
[334538030,1723175466623,-500.0,0.00028767,7]
[334538031,1723175466633,-500.0,0.00028767,7]
[334538032,1723175466642,-866.78,0.00028767,7]
[334538033,1723175466652,-822.38,0.00028767,7]
[334538034,1723175466662,-759.86,0.00028767,7]
[334538035,1723175466671,-11189.93,0.00028767,7]
[334538036,1723175466680,-669.69,0.00028767,7]
[334538037,1723175466691,-1294.91,0.00028767,7]
[334538038,1723175466700,-1996.68,0.00028767,7]
[334538039,1723175466711,-500.0,0.00028767,7]
[334538040,1723175466721,-500.0,0.00028767,7]
[334538041,1723175466731,-500.0,0.00028767,7]
[334538042,1723175466741,-595.72,0.00028767,7]
[334538043,1723175466750,-500.0,0.00028767,7]
[334538044,1723175466761,-576.79863401,0.00028767,7]
[334538045,1723175466771,-3938.68,0.00028767,7]
[334538046,1723175466781,-1444.49,0.00028767,7]
[334538047,1723175466791,-581.17,0.00028767,7]
[334538048,1723175466801,-500.0,0.00028767,7]
[334538049,1723175466810,-500.0,0.00028767,7]
[334538050,1723175466820,-500.0,0.00028767,7]
[334538051,1723175466830,-1881.07,0.00028767,7]
[334538052,1723175466840,-568.65,0.00028767,7]
[334538053,1723175466853,-4584.87,0.00028767,7]
[334538054,1723175466863,-889.23,0.00028767,7]
[334538055,1723175466873,-1212.01,0.00028767,7]
[334538056,1723175466882,-500.0,0.00028767,7]
[334538057,1723175466893,-847.63,0.00028767,7]
[334538058,1723175466902,-732.82,0.00028767,7]
[334538059,1723175466911,-500.0,0.00028767,7]
[334538060,1723175466921,-1231.59,0.00028767,7]
[334538061,1723175466930,-500.0,0.00028767,7]
[334538062,1723175466941,-500.0,0.00028767,7]
[334538063,1723175466951,-662.47,0.00028767,7]
[334538064,1723175466962,-729.22,0.00028767,7]
[334538065,1723175466972,-500.0,0.00028767,7]
[334538066,1723175466982,-982.28,0.00028767,7]
[334538067,1723175466992,-639.18,0.00028767,7]
[334538068,1723175467001,-2039.32,0.00028767,7]
[334538069,1723175467010,-1745.78,0.00028767,7]
[334538070,1723175467020,-500.0,0.00028767,7]
[334538071,1723175467030,-500.0,0.00028767,7]
[334538072,1723175467040,-401.85611938,0.00028767,7]
[334538073,1723175467049,-989.93,0.00028767,7]
[334538074,1723175467059,-2300.0,0.00028778,2]
[334538075,1723175467069,-574.43127349,0.00028782,2]
[334538076,1723175467257,-1021.00818479,0.00028782,2]
[334538077,1723175467304,-159.33909934,0.0001571,2]
[334538078,1723175467314,-229.4013,0.00017019,2]
[334538079,1723175467323,-314.09240613,0.0002028,2]
[334538080,1723175467333,-1311.87,0.00027397,7]
[334538081,1723175467342,-104.56054172,0.00028782,2]
[334538082,1723175467353,-2300.0,0.00028788,2]
[334538083,1723175467364,-3600.0,0.0002879,2]
[334538084,1723175467375,-568.7,0.000288,14]
[334538085,1723175467385,-3600.0,0.00028848,2]
[334538086,1723175467395,-500.0,0.00028873,2]
[334538087,1723175467405,-152.77,0.000289,31]
[334538088,1723175467414,-152.77,0.000289,31]
[334538089,1723175467424,-152.77,0.000289,31]
[334538090,1723175467433,-152.77,0.000289,31]
[334538091,1723175467443,-152.77,0.000289,31]
[334538092,1723175467453,-152.77,0.000289,31]
[334538093,1723175467464,-152.77,0.000289,31]
[334538094,1723175467473,-152.77,0.000289,31]
[334538095,1723175467483,-152.77,0.000289,31]
[334538096,1723175467492,-152.77,0.000289,31]
[334538097,1723175467502,-152.77,0.000289,31]
[334538098,1723175467512,-152.77,0.000289,31]
[334538099,1723175467521,-152.77,0.000289,31]
[334538100,1723175467531,-152.77,0.000289,31]
[334538101,1723175467541,-152.77,0.000289,31]
[334538102,1723175467551,-152.77,0.000289,31]
[334538103,1723175467560,-152.77,0.000289,31]
[334538104,1723175467569,-620.00000669,0.00028946,2]
[334538105,1723175467580,-2300.0,0.00028978,2]
[334538106,1723175467589,-1700.0,0.00028985,2]
[334538107,1723175467599,-174.0,0.00028997,2]
[334538108,1723175467609,-292.0,0.00028997,2]
[334538109,1723175467620,-1000.0,0.00029,29]
[334538110,1723175467630,-343.17998895,0.00029,120]
[334538111,1723175467640,-500.0,0.00029035,2]
[334538112,1723175467651,-1700.0,0.0002904,2]
[334538113,1723175467660,-500.0,0.00029041,7]
[334538114,1723175467669,-500.0,0.00029041,7]
[334538115,1723175467679,-738.31,0.00029041,7]
[334538116,1723175467688,-500.0,0.00029041,7]
[334538117,1723175467697,-500.0,0.00029041,7]
[334538118,1723175467706,-500.0,0.00029041,7]
[334538119,1723175467717,-500.0,0.00029041,7]
[334538120,1723175467727,-528.54818276,0.00029041,7]
[334538121,1723175467738,-500.0,0.00029041,7]
[334538122,1723175467747,-718.76,0.00029041,7]
[334538123,1723175467756,-500.0,0.00029041,7]
[334538124,1723175467767,-916.09,0.00029041,7]
[334538125,1723175467776,-500.0,0.00029041,7]
[334538126,1723175467786,-531.59,0.00029041,7]
[334538127,1723175467795,-500.0,0.00029041,7]
[334538128,1723175467805,-500.0,0.00029041,7]
[334538129,1723175467815,-500.0,0.00029041,7]
[334538130,1723175467824,-500.0,0.00029041,7]
[334538131,1723175467834,-601.47,0.00029041,7]
[334538132,1723175467844,-249.98877965,0.00029041,7]
[334538133,1723175467857,-500.0,0.00029041,7]
[334538134,1723175467866,-536.48,0.00029041,7]
[334538135,1723175467876,-500.0,0.00029041,7]
[334538136,1723175467886,-500.0,0.00029041,7]
[334538137,1723175467895,-500.0,0.00029041,7]
[334538138,1723175467905,-500.0,0.00029041,7]
[334538139,1723175467915,-500.0,0.00029041,7]
[334538140,1723175467927,-500.0,0.00029041,7]
[334538141,1723175467937,-500.0,0.00029041,7]
[334538142,1723175467947,-521.46,0.00029041,7]
[334538143,1723175467957,-819.55,0.00029041,7]
[334538144,1723175467967,-216.86195686,0.00029041,7]
[334538145,1723175467976,-596.88,0.00029041,7]
[334538146,1723175467986,-889.47,0.00029041,7]
[334538147,1723175467995,-500.0,0.00029041,7]
[334538148,1723175468005,-294.23516105,0.00029041,7]
[334538149,1723175468015,-500.0,0.00029041,7]
[334538150,1723175468025,-500.0,0.00029041,7]
[334538151,1723175468034,-500.0,0.00029041,7]
[334538152,1723175468044,-500.0,0.00029041,7]
[334538153,1723175468054,-500.0,0.00029041,7]
[334538154,1723175468064,-500.0,0.00029041,7]
[334538155,1723175468075,-500.0,0.00029041,7]
[334538156,1723175468086,-500.0,0.00029041,7]
[334538157,1723175468097,-500.0,0.00029041,7]
[334538158,1723175468108,-500.0,0.00029041,7]
[334538159,1723175468118,-500.0,0.00029041,7]
[334538160,1723175468129,-841.12,0.00029041,7]
[334538161,1723175468139,-500.0,0.00029041,7]
[334538162,1723175468150,-500.0,0.00029041,7]
[334538163,1723175468162,-500.0,0.00029041,7]
[334538164,1723175468172,-1028.46,0.00029041,7]
[334538165,1723175468182,-500.0,0.00029041,7]
[334538166,1723175468193,-686.34,0.00029041,7]
[334538167,1723175468205,-500.0,0.00029041,7]
[334538168,1723175468224,-1139.48,0.00029041,7]
[334538169,1723175468235,-639.21,0.00029041,7]
[334538170,1723175468246,-500.0,0.00029041,7]
[334538171,1723175468258,-500.0,0.00029041,7]
[334538172,1723175468272,-500.0,0.00029041,7]
[334538173,1723175468282,-2809.53,0.00029041,7]
[334538174,1723175468292,-500.0,0.00029041,7]
[334538175,1723175468302,-558.98,0.00029041,7]
[334538176,1723175468312,-673.98,0.00029041,7]
[334538177,1723175468321,-500.0,0.00029041,7]
[334538178,1723175468331,-500.0,0.00029041,7]
[334538179,1723175468342,-500.0,0.00029041,7]
[334538180,1723175468352,-804.0,0.00029041,7]
[334538181,1723175468363,-1166.87,0.00029041,7]
[334538182,1723175468373,-500.0,0.00029041,7]
[334538183,1723175468385,-500.0,0.00029041,7]
[334538184,1723175468395,-500.0,0.00029041,7]
[334538185,1723175468405,-566.9148309,0.00029041,7]
[334538186,1723175468415,-731.44,0.00029041,7]
[334538187,1723175468426,-500.0,0.00029041,7]
[334538188,1723175468436,-500.0,0.00029041,7]
[334538189,1723175468446,-500.0,0.00029041,7]
[334538190,1723175468456,-1343.08,0.00029041,7]
[334538191,1723175468466,-500.0,0.00029041,7]
[334538192,1723175468475,-500.0,0.00029041,7]
[334538193,1723175468486,-522.07,0.00029041,7]
[334538194,1723175468495,-500.0,0.00029041,7]
[334538195,1723175468505,-500.0,0.00029041,7]
[334538196,1723175468514,-1282.11,0.00029041,7]
[334538197,1723175468524,-1458.62,0.00029041,7]
[334538198,1723175468535,-577.74,0.00029041,7]
[334538199,1723175468546,-1411.12,0.00029041,7]
[334538200,1723175468556,-361.6881857,0.00029041,7]
[334538201,1723175468566,-568.41,0.00029041,7]
[334538202,1723175468576,-995.77,0.00029041,7]
[334538203,1723175468586,-720.53,0.00029041,7]
[334538204,1723175468595,-500.0,0.00029041,7]
[334538205,1723175468604,-7412.01,0.00029041,7]
[334538206,1723175468614,-5203.53,0.00029041,7]
[334538207,1723175468624,-500.0,0.00029041,7]
[334538208,1723175468634,-1885.6,0.00029041,7]
[334538209,1723175468645,-576.74,0.00029041,7]
[334538210,1723175468655,-1572.92,0.00029041,7]
[334538211,1723175468664,-1682.64,0.00029041,7]
[334538212,1723175468674,-525.24,0.00029041,7]
[334538213,1723175468684,-520.06,0.00029041,7]
[334538214,1723175468693,-500.0,0.00029041,7]
[334538215,1723175468703,-862.76,0.00029041,7]
[334538216,1723175468720,-500.0,0.00029041,7]
[334538217,1723175468731,-726.32,0.00029041,7]
[334538218,1723175468742,-500.0,0.00029041,7]
[334538219,1723175468752,-500.0,0.00029041,7]
[334538220,1723175468766,-500.0,0.00029041,7]
[334538221,1723175468776,-710.48,0.00029041,7]
[334538222,1723175468786,-500.0,0.00029041,7]
[334538223,1723175468795,-573.02,0.00029041,7]
[334538224,1723175468805,-500.0,0.00029041,7]
[334538225,1723175468815,-1681.4,0.00029041,7]
[334538226,1723175468825,-500.0,0.00029041,7]
[334538227,1723175468835,-500.0,0.00029041,7]
[334538228,1723175468846,-1267.59,0.00029041,7]
[334538229,1723175468858,-500.0,0.00029041,7]
[334538230,1723175468869,-500.0,0.00029041,7]
[334538231,1723175468879,-500.0,0.00029041,7]
[334538232,1723175468890,-868.37,0.00029041,7]
[334538233,1723175468900,-500.0,0.00029041,7]
[334538234,1723175468909,-507.43,0.00029041,7]
[334538235,1723175468923,-500.0,0.00029041,7]
[334538236,1723175468934,-500.0,0.00029041,7]
[334538237,1723175468944,-866.78,0.00029041,7]
[334538238,1723175468957,-822.38,0.00029041,7]
[334538239,1723175468977,-759.86,0.00029041,7]
[334538240,1723175468987,-11189.93,0.00029041,7]
[334538241,1723175468997,-669.69,0.00029041,7]
[334538242,1723175469010,-1294.91,0.00029041,7]
[334538243,1723175469021,-1996.68,0.00029041,7]
[334538244,1723175469031,-412.04405962,0.00029041,7]
[334538245,1723175469041,-500.0,0.00029041,7]
[334538246,1723175469050,-500.0,0.00029041,7]
[334538247,1723175469060,-595.72,0.00029041,7]
[334538248,1723175469069,-353.18540864,0.00029041,7]
[334538249,1723175469079,-3938.68,0.00029041,7]
[334538250,1723175469088,-1444.49,0.00029041,7]
[334538251,1723175469098,-581.17,0.00029041,7]
[334538252,1723175469108,-500.0,0.00029041,7]
[334538253,1723175469117,-500.0,0.00029041,7]
[334538254,1723175469126,-500.0,0.00029041,7]
[334538255,1723175469137,-1881.07,0.00029041,7]
[334538256,1723175469276,-568.65,0.00029041,7]
[334538257,1723175469286,-4584.87,0.00029041,7]
[334538258,1723175469295,-889.23,0.00029041,7]
[334538259,1723175469305,-1212.01,0.00029041,7]
[334538260,1723175469315,-500.0,0.00029041,7]
[334538261,1723175469324,-847.63,0.00029041,7]
[334538262,1723175469334,-732.82,0.00029041,7]
[334538263,1723175469345,-500.0,0.00029041,7]
[334538264,1723175469355,-1231.59,0.00029041,7]
[334538265,1723175469365,-500.0,0.00029041,7]
[334538266,1723175469375,-500.0,0.00029041,7]
[334538267,1723175469385,-662.47,0.00029041,7]
[334538268,1723175469395,-729.22,0.00029041,7]
[334538269,1723175469405,-500.0,0.00029041,7]
[334538270,1723175469415,-639.18,0.00029041,7]
[334538271,1723175469425,-982.28,0.00029041,7]
[334538272,1723175469434,-2039.32,0.00029041,7]
[334538273,1723175469444,-1745.78,0.00029041,7]
[334538275,1723175469454,-500.0,0.00029041,7]
[334538276,1723175469467,-500.0,0.00029041,7]
[334538277,1723175469476,-989.93,0.00029041,7]
[334538278,1723175469486,-212.8110363,0.00029041,2]
[334538279,1723175469496,-151.57561976,0.00029101,2]
[334538280,1723175469507,-1700.0,0.00029102,2]
[334538281,1723175469516,-500.0,0.0002915,2]
[334538282,1723175469526,-3600.0,0.00029176,2]
[334538283,1723175469536,-3600.0,0.00029177,2]
[334538284,1723175469548,-500.0,0.00029215,2]
[334538285,1723175469559,-3600.0,0.00029261,2]
[334538286,1723175469569,-500.0,0.00029315,7]
[334538287,1723175469578,-500.0,0.00029315,7]
[334538288,1723175469588,-738.31,0.00029315,7]
[334538289,1723175469598,-500.0,0.00029315,7]
[334538290,1723175469609,-500.0,0.00029315,7]
[334538291,1723175469619,-500.0,0.00029315,7]
[334538292,1723175469631,-500.0,0.00029315,7]
[334538293,1723175469642,-500.0,0.00029315,7]
[334538294,1723175469652,-718.76,0.00029315,7]
[334538295,1723175469662,-500.0,0.00029315,7]
[334538296,1723175469671,-916.09,0.00029315,7]
[334538297,1723175469681,-500.0,0.00029315,7]
[334538298,1723175469690,-531.59,0.00029315,7]
[334538299,1723175469699,-500.0,0.00029315,7]
[334538300,1723175469713,-500.0,0.00029315,7]
[334538301,1723175469722,-500.0,0.00029315,7]
[334538302,1723175469731,-500.0,0.00029315,7]
[334538303,1723175469742,-601.47,0.00029315,7]
[334538304,1723175469752,-500.0,0.00029315,7]
[334538305,1723175469762,-536.48,0.00029315,7]
[334538306,1723175469772,-500.0,0.00029315,7]
[334538307,1723175469782,-500.0,0.00029315,7]
[334538308,1723175469792,-500.0,0.00029315,7]
[334538309,1723175469801,-500.0,0.00029315,7]
[334538310,1723175469811,-500.0,0.00029315,7]
[334538311,1723175469820,-500.0,0.00029315,7]
[334538312,1723175469830,-500.0,0.00029315,7]
[334538313,1723175469840,-521.46,0.00029315,7]
[334538314,1723175469852,-819.55,0.00029315,7]
[334538315,1723175469861,-596.88,0.00029315,7]
[334538316,1723175469871,-889.47,0.00029315,7]
[334538317,1723175469880,-68.64693227,0.00029315,7]
[334538318,1723175470048,308.13141154,0.00015,2]
[334538319,1723175470193,-188.34866886,0.00015708,2]
[334538320,1723175470204,-154.79103211,0.00015744,2]
[334538321,1723175470218,-154.8223718,0.00017019,4]
[334538322,1723175470227,-1438.04418429,0.00018679,2]
[334538323,1723175470550,196.58453843,9.999e-05,2]
[334538324,1723175470631,2850.80314621,0.00015,2]
[334538325,1723175470672,297.68163968,0.00014545,2]
[334538326,1723175471001,293.44705322,0.00014545,2]
[334538327,1723175471303,180.58289429,0.00014545,2]
[334538328,1723175471457,951.67084977,0.00015,2]
[334538329,1723175471504,543.3913977,0.00014545,2]
[334538330,1723175471618,159.91861822,0.00014545,2]
[334538331,1723175471696,568.89588544,0.00014545,2]
[334538332,1723175471738,300.0,0.00014999,2]
[334538333,1723175472052,300.0,0.00014544,2]
[334538334,1723175472270,300.45886029,0.000149,2]
[334538335,1723175472522,1109.52360725,0.00015,2]
[334538336,1723175472687,156.69756504,0.00014545,2]
[334538337,1723175472870,154.79103211,0.00014545,2]
[334538338,1723175473100,666.92833874,0.00014545,2]
[334538339,1723175473156,534.23635652,0.00014545,2]
[334538340,1723175473187,816.72532423,0.00014545,2]
[334538341,1723175473222,154.79103211,0.00014545,2]
[334538342,1723175473258,9648.27796999,0.00014545,2]
[334538343,1723175473660,780.76476649,0.00014545,2]
[334538344,1723175474026,154.79103211,0.00014545,2]
[334538345,1723175475619,180.58289429,0.00014545,2]
[334538346,1723175476632,194.69086779,0.00014545,2]
[334538347,1723175477161,7005.89832707,0.00014545,2]
[334538348,1723175478090,3089.42924468,0.00014545,2]
[334538349,1723175479589,694.52815247,0.00014545,2]
[334538350,1723175483250,519.94052242,0.00014545,2]
[334538351,1723175487544,2125.78393313,0.00014545,2]
[334538352,1723175487882,174.63190084,0.00014545,2]
[334538353,1723175488822,342.24911954,0.00014545,2]
[334538354,1723175489171,403.97923523,0.00014545,2]
[334538355,1723175489210,154.79103211,0.00014545,2]
[334538356,1723175489448,1992.83567899,0.00014545,2]
[334538357,1723175492045,273.37336231,9.9e-05,2]
[334538358,1723175495960,154.79103211,0.0001,2]
[334538359,1723175502279,205.31051458,9.999e-05,2]
[334538360,1723175508515,273.37336231,9.9e-05,2]
[334538361,1723175523841,157.05367525,9.999e-05,2]
[334538362,1723175526153,273.37336231,9.9e-05,2]
[334538363,1723175526832,342.24911954,0.00012,2]
[334538364,1723175527343,2125.78393313,0.00012,2]
[334538365,1723175532904,174.63190084,0.00012,2]
[334538366,1723175534205,200.30421139,0.00012,2]
[334538367,1723175534664,154.90155406,0.00012,2]
[334538368,1723175539466,1992.83567899,0.00012,2]
[334538369,1723175543102,519.94052242,0.00012,2]
[334538370,1723175544585,694.52815247,0.00012,2]
[334538371,1723175547451,154.79103211,0.00012,2]
[334538372,1723175554175,403.97923523,0.00012,2]
[334538373,1723175555621,180.58289429,0.00012,2]
[334538374,1723175555786,205.31051458,0.00012,2]
[334538375,1723175556684,189.86108484,0.00012,2]
[334538376,1723175557935,209.98990113,0.00012,2]
[334538377,1723175559377,154.79103211,9.999e-05,2]
[334538378,1723175561262,9648.27796999,0.00012,2]
[334538379,1723175570443,292.35340978,0.00015,2]
[334538380,1723175570625,568.89588544,0.00012,2]
[334538381,1723175572833,341.65218956,0.00012,2]
[334538382,1723175572906,174.63190084,0.00012,2]
[334538383,1723175573808,404.97965185,9.9e-05,2]
[334538384,1723175579453,1992.83567899,0.00012,2]
[334538385,1723175581208,157.05367525,0.00012,2]
[334538386,1723175585373,1109.52360725,0.00015,2]
[334538387,1723175587337,2125.78393313,0.00012,2]
[334538388,1723175587438,154.79103211,0.00014545,2]
[334538389,1723175590384,156.69756504,0.00014545,2]
[334538390,1723175592758,155.18167037,9.999e-05,2]
[334538391,1723175598965,1669.45709618,0.00012,2]
[334538392,1723175603298,519.94052242,0.00014545,2]
[334538393,1723175603630,534.23635652,0.00014545,2]
[334538394,1723175604187,403.97923523,0.00014545,2]
[334538395,1723175606878,154.79103211,0.00014545,2]
[334538396,1723175617945,209.98990113,0.00014545,2]
[334538397,1723175621202,205.31051458,0.00014545,2]
[334538398,1723175627207,157.05367525,0.00014545,2]
[334538399,1723175633310,359.18543398,0.00014545,2]
[334538400,1723175637617,743.2134276,0.0001472,2]
[334538401,1723175655625,250.0,0.00014831,2]
[334538402,1723175656047,250.0,0.00014871,2]
[334538403,1723175656275,250.0,0.00014912,2]
[334538404,1723175656489,250.0,0.00014953,2]
[334538405,1723175656697,250.0,0.00014993,2]
[334538406,1723175775639,164.759524,0.00014247,2]
[334538407,1723175809596,3720.3483353,0.00014543,2]
[334538408,1723175842327,-250.0,0.00015034,2]
[334538409,1723175842351,-250.0,0.00015075,2]
[334538410,1723175842375,-250.0,0.00015115,2]
[334538411,1723175842399,-250.0,0.00015156,2]
[334538412,1723175842424,-250.0,0.00015197,2]
[334538413,1723175842448,-250.0,0.00015238,2]
[334538414,1723175842472,-250.0,0.00015278,2]
[334538415,1723175842496,-250.0,0.00015319,2]
[334538416,1723175842520,-250.0,0.0001536,2]
[334538417,1723175842544,-250.0,0.000154,2]
[334538418,1723175842582,-309.99916935,0.00015441,2]
[334538419,1723175842609,-250.0,0.00015441,2]
[334538420,1723175842633,-250.0,0.00015482,2]
[334538421,1723175842657,-250.0,0.00015522,2]
[334538422,1723175842683,-250.0,0.00015563,2]
[334538423,1723175842707,-4747.8260782,0.00015576,2]
[334538424,1723175842734,-250.0,0.00015604,2]
[334538425,1723175842757,-300.0,0.00015653,2]
[334538426,1723175842783,-3574.2134495,0.00015654,2]
[334538427,1723175842807,-500.0,0.00015676,2]
[334538428,1723175842830,-500.0,0.00015676,2]
[334538429,1723175842852,-500.0,0.00015676,2]
[334538430,1723175842876,-500.0,0.00015676,2]
[334538431,1723175842899,-500.0,0.00015676,2]
[334538432,1723175842922,-500.0,0.00015676,2]
[334538433,1723175842945,-500.0,0.00015676,2]
[334538434,1723175842972,-500.0,0.00015676,2]
[334538435,1723175842996,-500.0,0.00015676,2]
[334538436,1723175843022,-500.0,0.00015676,2]
[334538437,1723175843048,-500.0,0.00015676,2]
[334538438,1723175843071,-500.0,0.00015676,2]
[334538439,1723175843095,-500.0,0.00015676,2]
[334538440,1723175843128,-500.0,0.00015676,2]
[334538441,1723175843155,-626.97345948,0.00015676,2]
[334538442,1723175843180,-500.0,0.00015676,2]
[334538443,1723175843204,-500.0,0.00015676,2]
[334538444,1723175843228,-500.0,0.00015676,2]
[334538445,1723175843252,-500.0,0.00015676,2]
[334538446,1723175843275,-500.0,0.00015676,2]
[334538447,1723175843301,-500.0,0.00015676,2]
[334538448,1723175843329,-500.0,0.00015676,2]
[334538449,1723175843354,-348.96927951,0.00015676,2]
[334538450,1723175843377,-500.0,0.00015676,2]
[334538451,1723175843412,-500.0,0.00015676,2]
[334538452,1723175843443,-296.46573743,0.00015676,2]
[334538453,1723175843472,-641.70680137,0.00015676,2]
[334538454,1723175843501,-500.0,0.00015676,2]
[334538455,1723175843526,-500.0,0.00015676,2]
[334538456,1723175843553,-500.0,0.00015676,2]
[334538457,1723175843582,-500.0,0.00015676,2]
[334538458,1723175843614,-500.0,0.00015676,2]
[334538459,1723175843642,-500.0,0.00015676,2]
[334538460,1723175843670,-500.0,0.00015676,2]
[334538461,1723175843698,-589.51035952,0.00015676,2]
[334538462,1723175843724,-500.0,0.00015676,2]
[334538463,1723175843753,-500.0,0.00015676,2]
[334538464,1723175843784,-200.0,0.00015676,2]
[334538465,1723175843812,-500.0,0.00015676,2]
[334538466,1723175843839,-500.0,0.00015676,2]
[334538467,1723175843866,-500.0,0.00015676,2]
[334538468,1723175843895,-500.0,0.00015676,2]
[334538469,1723175843923,-500.0,0.00015676,2]
[334538470,1723175843953,-500.0,0.00015676,2]
[334538471,1723175843987,-500.0,0.00015676,2]
[334538472,1723175844017,-500.0,0.00015676,2]
[334538473,1723175844048,-500.0,0.00015676,2]
[334538474,1723175844075,-500.0,0.00015676,2]
[334538475,1723175844102,-500.0,0.00015676,2]
[334538476,1723175844130,-500.0,0.00015676,2]
[334538477,1723175844157,-500.0,0.00015676,2]
[334538478,1723175844184,-500.0,0.00015676,2]
[334538479,1723175844211,-500.0,0.00015676,2]
[334538480,1723175844237,-500.0,0.00015676,2]
[334538481,1723175844263,-500.0,0.00015676,2]
[334538482,1723175844293,-500.0,0.00015676,2]
[334538483,1723175844320,-500.0,0.00015676,2]
[334538484,1723175844347,-500.0,0.00015676,2]
[334538485,1723175844374,-500.0,0.00015676,2]
[334538486,1723175844400,-500.0,0.00015676,2]
[334538487,1723175844425,-500.0,0.00015676,2]
[334538488,1723175844451,-500.0,0.00015676,2]
[334538489,1723175844479,-500.0,0.00015676,2]
[334538490,1723175844506,-500.0,0.00015676,2]
[334538491,1723175844539,-500.0,0.00015676,2]
[334538492,1723175844569,-500.0,0.00015676,2]
[334538493,1723175844597,-500.0,0.00015676,2]
[334538494,1723175844621,-500.0,0.00015676,2]
[334538495,1723175844648,-500.0,0.00015676,2]
[334538496,1723175844674,-500.0,0.00015676,2]
[334538497,1723175844700,-500.0,0.00015676,2]
[334538498,1723175844727,-500.0,0.00015676,2]
[334538499,1723175844752,-500.0,0.00015676,2]
[334538500,1723175844779,-765.83080148,0.00015676,2]
[334538501,1723175844805,-765.83080148,0.00015676,2]
[334538502,1723175844832,-765.83080148,0.00015676,2]
[334538503,1723175844857,-765.83080148,0.00015676,2]
[334538504,1723175844885,-765.83080148,0.00015676,2]
[334538505,1723175844922,-765.83080148,0.00015676,2]
[334538506,1723175844950,-765.83080148,0.00015676,2]
[334538507,1723175844982,-765.83080148,0.00015676,2]
[334538508,1723175845011,-765.83080148,0.00015676,2]
[334538509,1723175845041,-765.83080148,0.00015676,2]